bitfinex/quotes_ETHUSD_20250603
["timestamp","ask_amount","ask_price","bid_price","bid_amount"]
[1748969839992,1.2457,2606.3,2605.5,3.83795949]
[1748969840588,1.2457,2606.3,2605.6,5.54684607]
[1748969840805,1.2457,2606.3,2605.7,4.7762098]
[1748969841164,1.2457,2606.3,2605.7,5.15011467]
[1748969841680,1.2457,2606.3,2605.7,1.31238543]
[1748969842284,1.2457,2606.3,2605.7,0.37390487]
[1748969842768,1.2457,2606.3,2605.5,1.709]
[1748969843379,1.2457,2606.3,2605.5,5.54702476]
[1748969843959,1.2457,2606.3,2605.5,3.83802476]
[1748969844170,1.2457,2606.3,2605.5,5.54702476]
[1748969844368,1.2457,2606.3,2605.5,7.28555189]
[1748969844566,1.2457,2606.3,2605.2,1.2992]
[1748969844887,1.2457,2606.3,2605.3,1.709]
[1748969845387,1.2457,2606.3,2605.2,9.709]
[1748969846199,1.2457,2606.3,2605.3,1.709]
[1748969846492,1.2457,2606.3,2605.2,8.0]
[1748969846692,1.2457,2606.3,2605.2,11.9046726]
[1748969847259,1.2457,2606.3,2605.0,1.2427]
[1748969847260,8.26342902,2605.9,2605.0,1.2427]
[1748969847468,1.3379,2605.8,2604.7,11.709]
[1748969847669,1.2857,2605.6,2604.7,1.68720702]
[1748969847999,1.2857,2605.6,2604.8,8.0]
[1748969848296,1.2857,2605.6,2604.6,8.0]
[1748969848508,1.2857,2605.6,2604.5,3.86943139]
[1748969848794,1.51028329,2605.6,2604.8,8.0]
[1748969849561,1.51028329,2605.6,2604.6,1.38694314]
[1748969849765,1.2456,2605.2,2604.5,0.03]
[1748969849984,1.2456,2605.1,2604.5,0.03]
[1748969854404,0.55,2604.4,2604.1,0.02]
[1748969854613,1.2298,2604.2,2604.1,0.02]
[1748969855019,1.2298,2604.2,2604.1,0.37981223]
[1748969855169,1.99358,2604.2,2604.1,0.37981223]
[1748969855357,1.2298,2604.2,2604.1,0.37981223]
[1748969859667,1.2298,2604.2,2604.1,0.73956405]
[1748969859871,1.2313,2604.8,2604.1,0.73956094]
[1748969860129,1.2313,2604.8,2604.1,0.37981223]
[1748969860600,1.2313,2604.8,2604.3,3.8398034]
[1748969860780,1.2313,2605.2,2604.4,8.55388034]
[1748969860979,1.2313,2605.2,2604.4,4.39347889]
[1748969861179,1.2313,2605.2,2604.6,8.0]
[1748969861506,1.2313,2605.2,2604.4,12.39341325]
[1748969861802,1.2313,2605.2,2604.6,8.0]
[1748969862411,1.2313,2605.2,2604.8,10.0]
[1748969862811,1.2313,2605.2,2604.8,13.83906561]
[1748969863011,1.3375,2605.7,2604.9,8.0]
[1748969863222,0.30365,2605.6,2604.8,9.698]
[1748969863439,1.3375,2605.7,2604.9,8.0]
[1748969863721,1.3375,2605.7,2604.8,9.698]
[1748969865041,1.3375,2605.7,2604.8,5.53706067]
[1748969865359,1.3375,2605.7,2604.9,0.55370607]
[1748969865697,1.3375,2605.7,2604.8,1.698]
[1748969866336,1.3375,2605.7,2604.8,5.53706373]
[1748969866634,1.3375,2605.7,2604.9,3.83888296]
[1748969866840,1.3375,2605.7,2605.2,8.0]
[1748969867045,1.3375,2605.7,2605.2,11.83842112]
[1748969867338,1.3375,2605.7,2605.3,1.56769735]
[1748969868315,1.3375,2605.7,2605.0,8.0]
[1748969868714,1.3375,2605.7,2605.1,3.83856101]
[1748969869146,1.3375,2605.7,2605.2,3.83846139]
[1748969869350,1.3375,2605.7,2605.1,4.03022077]
[1748969869644,1.3375,2605.7,2605.2,3.83847355]
[1748969869847,1.3375,2605.7,2605.3,0.35955681]
[1748969870045,1.3375,2605.7,2605.2,5.40619729]
[1748969872147,1.3375,2605.7,2605.3,8.0]
[1748969872348,1.3375,2605.7,2605.3,3.83824733]
[1748969872553,1.3375,2605.7,2605.4,8.0]
[1748969873075,1.3375,2605.7,2605.4,11.83813827]
[1748969873351,1.3375,2605.7,2605.3,8.0]
[1748969873548,1.3228,2606.5,2605.5,16.26342902]
[1748969873921,1.3228,2606.5,2605.4,2.9559]
[1748969873922,1.3228,2606.5,2605.4,9.2579]
[1748969874120,1.3228,2606.5,2605.5,1.698]
[1748969874327,1.3228,2606.5,2605.5,5.53599988]
[1748969874728,1.3228,2606.5,2605.5,5.53601808]
[1748969874913,1.3228,2606.5,2605.6,5.31721862]
[1748969875112,1.3228,2606.5,2605.7,10.0]
[1748969875857,1.3228,2606.5,2605.7,3.8376541]
[1748969877031,1.3228,2606.5,2605.8,3.83758114]
[1748969877422,1.3228,2606.5,2605.8,4.21887557]
[1748969877617,1.3228,2606.5,2605.9,1.22188756]
[1748969879519,1.3228,2606.5,2605.7,8.0]
[1748969879864,1.3228,2606.5,2605.8,1.694]
[1748969880756,1.3228,2606.5,2606.2,8.0]
[1748969880959,1.3228,2606.5,2605.9,13.17400291]
[1748969881140,1.3228,2606.5,2605.9,9.3366]
[1748969881474,1.3228,2606.5,2606.0,2.31315627]
[1748969881821,1.3228,2606.5,2605.8,18.0]
[1748969882018,1.3228,2606.5,2606.0,1.694]
[1748969882223,1.3228,2606.5,2605.8,8.0]
[1748969882479,1.3228,2606.5,2605.9,1.694]
[1748969883943,1.3228,2606.5,2605.8,0.38105535]
[1748969884126,1.3228,2606.5,2605.6,1.47939181]
[1748969884327,8.26342902,2606.3,2605.2,8.284]
[1748969884571,1.2898,2606.2,2605.2,9.978]
[1748969884755,1.2898,2606.2,2605.3,8.0]
[1748969885073,1.2898,2606.2,2605.4,1.7978]
[1748969886167,1.2898,2606.2,2605.6,8.0]
[1748969886333,1.2898,2606.2,2605.5,13.09407138]
[1748969886849,1.2898,2606.2,2605.6,3.83776472]
[1748969887179,1.2898,2606.2,2605.5,1.2561]
[1748969887335,1.2898,2606.2,2605.5,9.48921275]
[1748969887534,1.2898,2606.2,2605.5,11.18321275]
[1748969888651,1.2898,2606.2,2605.5,9.48921275]
[1748969889034,1.2898,2606.2,2605.5,13.3272402]
[1748969889377,1.2898,2606.2,2605.6,3.83787607]
[1748969889535,1.2898,2606.2,2605.7,1.33270888]
[1748969890374,1.2898,2606.2,2605.8,8.0]
[1748969891478,1.2898,2606.2,2605.5,9.48921275]
[1748969891638,1.2898,2606.2,2605.5,11.18321275]
[1748969891842,1.2898,2606.2,2605.6,3.83785588]
[1748969892096,1.2898,2606.2,2605.7,4.4151509]
[1748969892438,1.2898,2606.2,2605.7,0.57749639]
[1748969892989,1.2898,2606.2,2605.4,7.32993498]
[1748969893390,1.2898,2606.2,2605.4,5.63593498]
[1748969893560,1.2898,2606.2,2605.5,3.83790933]
[1748969893761,1.2898,2606.2,2605.6,3.83788762]
[1748969894156,1.2898,2606.2,2605.7,3.83772242]
[1748969894355,1.2898,2606.2,2605.6,3.83780356]
[1748969894559,1.2898,2606.2,2605.7,3.83773502]
[1748969894756,1.2898,2606.2,2605.6,4.78518396]
[1748969894994,1.2898,2606.2,2605.6,0.94737203]
[1748969895197,1.2898,2606.2,2605.6,4.7851666]
[1748969895358,1.2898,2606.2,2605.6,0.94737203]
[1748969895699,1.2898,2606.2,2605.4,5.63590114]
[1748969895904,1.2898,2606.2,2605.5,3.83803002]
[1748969896069,1.2898,2606.2,2605.6,3.83784249]
[1748969896408,1.2898,2606.2,2605.7,3.83773386]
[1748969896762,1.2898,2606.2,2605.5,3.83795349]
[1748969897022,1.2898,2606.2,2605.5,1.91680325]
[1748969898530,1.2898,2606.2,2605.5,5.75476686]
[1748969898730,1.2898,2606.2,2605.8,10.0]
[1748969898909,1.2898,2606.2,2605.6,11.83785879]
[1748969899227,1.2898,2606.2,2605.8,10.0]
[1748969899738,1.3509,2606.1,2605.1,1.21813774]
[1748969899932,1.3509,2606.1,2605.0,8.0]
[1748969900079,1.3509,2606.1,2605.0,0.19506384]
[1748969900435,1.3509,2606.1,2605.1,10.0]
[1748969900787,1.3509,2606.1,2605.0,1.75668735]
[1748969901328,1.3423,2605.8,2604.4,2.06944469]
[1748969901546,8.26342902,2605.9,2604.5,8.0]
[1748969901547,6.939,2605.7,2604.5,8.0]
[1748969901847,6.939,2605.7,2604.6,1.39090463]
[1748969901848,1.3423,2605.5,2604.6,1.39090463]
[1748969901998,1.3423,2605.5,2604.4,1.694]
[1748969902328,1.3423,2605.5,2604.3,8.0]
[1748969902483,1.3423,2605.5,2604.2,12.02805166]
[1748969902675,1.60256899,2605.4,2604.4,7.12330309]
[1748969902898,1.3615,2605.4,2604.6,8.0]
[1748969903313,1.3615,2605.4,2604.4,3.83961534]
[1748969903523,1.3615,2605.4,2604.6,8.0]
[1748969903683,1.3318,2605.3,2604.4,10.0]
[1748969903884,1.3318,2605.3,2604.6,8.0]
[1748969905381,1.3318,2605.3,2604.6,11.83928136]
[1748969905781,1.3318,2605.3,2604.7,8.0]
[1748969905985,1.3318,2605.3,2604.9,16.26342902]
[1748969906290,1.3657,2605.9,2605.0,9.6263429]
[1748969907837,1.694,2606.0,2604.4,2.820696]
[1748969907838,8.26342902,2605.8,2604.4,2.820696]
[1748969908132,1.3594,2605.7,2604.5,3.83950244]
[1748969908337,0.9622829,2605.6,2604.6,1.18395024]
[1748969908555,1.3594,2605.5,2604.6,1.18395024]
[1748969908713,1.3594,2605.5,2604.6,9.18395024]
[1748969908911,1.3594,2605.5,2604.6,13.02324596]
[1748969909099,1.3594,2605.5,2604.6,9.18395024]
[1748969909546,1.3594,2605.5,2604.6,1.18395024]
[1748969909748,1.3594,2605.5,2604.4,8.0]
[1748969910105,1.3594,2605.5,2604.3,16.72606952]
[1748969910106,8.26342902,2605.2,2604.1,0.88981223]
[1748969910306,1.3835,2605.1,2604.1,0.56638575]
[1748969910532,1.3835,2605.1,2604.1,8.82981477]
[1748969910733,1.3835,2605.1,2604.3,3.83973031]
[1748969910903,1.3835,2605.1,2604.5,8.0]
[1748969911103,1.3835,2605.1,2604.6,8.0]
[1748969911614,1.3835,2605.1,2604.5,3.83941188]
[1748969911615,1.3835,2605.1,2604.5,11.83942923]
[1748969911815,1.3835,2605.1,2604.6,2.30549583]
[1748969912036,1.3835,2605.1,2604.7,10.0]
[1748969912303,1.307,2605.9,2604.7,13.83913241]
[1748969912542,0.7707,2605.8,2604.7,10.0]
[1748969912724,1.307,2605.7,2604.7,13.83911524]
[1748969912921,1.307,2605.5,2604.4,2.9521]
[1748969913471,1.307,2605.5,2604.5,9.7]
[1748969914418,1.307,2605.5,2604.4,8.0]
[1748969914704,1.3128,2605.3,2604.4,1.7]
[1748969915321,0.9570429,2605.4,2604.1,0.37981223]
[1748969915322,8.26342902,2605.0,2604.1,0.37981223]
[1748969915522,8.26342902,2604.7,2604.1,0.37981223]
[1748969915727,0.55,2605.2,2604.1,0.37981223]
[1748969915728,1.3128,2604.5,2604.1,0.37981223]
[1748969916208,1.3128,2604.5,2604.1,2.07981223]
[1748969918554,1.3128,2604.5,2604.1,0.37981223]
[1748969918708,1.3128,2604.5,2604.2,1.7]
[1748969920013,8.26342902,2605.6,2604.2,1.7]
[1748969920014,1.3784,2605.0,2604.2,1.7]
[1748969920214,1.3784,2605.0,2604.3,0.59197872]
[1748969920478,1.3784,2605.0,2604.2,5.53986853]
[1748969920767,1.3784,2605.0,2604.3,3.83977968]
[1748969921130,0.5,2604.8,2604.4,8.0]
[1748969921332,0.5,2604.8,2604.3,8.0]
[1748969921519,0.5,2604.8,2604.2,5.53989582]
[1748969921520,1.3626,2604.7,2604.2,1.7]
[1748969921713,1.3626,2604.7,2604.3,8.0]
[1748969922059,1.3626,2604.7,2604.3,3.83972114]
[1748969923375,1.3626,2604.7,2604.5,8.0]
[1748969923833,1.3626,2604.7,2604.2,8.0]
[1748969924028,1.3626,2604.7,2604.3,8.0]
[1748969924221,1.3626,2604.7,2604.1,4.21981266]
[1748969924417,1.3626,2604.7,2604.1,12.21981266]
[1748969924621,1.3626,2604.7,2604.2,8.0]
[1748969924847,1.3626,2604.7,2604.3,1.701]
[1748969925834,1.3626,2604.7,2604.3,9.701]
[1748969926067,1.3626,2604.7,2604.5,8.0]
[1748969926364,1.3626,2604.7,2604.4,3.83957482]
[1748969926365,1.3626,2604.7,2604.6,11.83936113]
[1748969926525,1.2627,2605.1,2604.7,8.0]
[1748969926861,1.2627,2605.1,2604.6,3.83929201]
[1748969927264,1.2627,2605.1,2604.6,5.4071805]
[1748969927561,1.2627,2605.1,2604.7,11.83920792]
[1748969927927,1.2627,2605.1,2604.9,3.83887575]
[1748969928127,1.2627,2605.1,2605.0,1.701]
[1748969929265,1.2627,2605.1,2604.4,3.83964764]
[1748969929446,1.2627,2605.1,2604.5,0.38396476]
[1748969929967,1.2516,2604.9,2604.1,4.21981959]
[1748969930168,1.2516,2604.9,2604.3,3.83967163]
[1748969930333,1.2516,2604.9,2604.3,3.83972786]
[1748969930533,1.2516,2604.9,2604.4,0.76796787]
[1748969930736,1.2516,2604.9,2604.4,4.60760188]
[1748969931129,1.2516,2604.9,2604.6,3.83928971]
[1748969931331,1.2516,2604.9,2604.6,1.701]
[1748969932547,1.2516,2604.9,2604.6,5.54027991]
[1748969932745,1.2516,2604.9,2604.6,4.34213108]
[1748969933151,8.26342902,2606.2,2604.6,4.34213108]
[1748969933152,1.2422,2605.2,2604.7,16.26342902]
[1748969934850,1.2422,2605.2,2604.7,20.10262273]
[1748969935046,1.2422,2605.2,2604.9,8.0]
[1748969935279,1.2422,2605.2,2605.0,1.18390403]
[1748969935989,1.2997,2606.0,2605.0,1.18390403]
[1748969936180,1.2997,2606.0,2605.1,8.0]
[1748969936349,1.2997,2606.0,2605.2,1.701]
[1748969937458,0.2997,2606.0,2605.2,1.701]
[1748969939806,4.38721787,2606.1,2605.0,1.721]
[1748969939969,0.55,2606.1,2605.0,1.721]
[1748969940302,0.55,2605.5,2604.2,1.721]
[1748969940612,1.312,2605.4,2604.2,1.721]
[1748969940907,1.3457,2605.1,2604.2,1.721]
[1748969942166,1.3457,2605.1,2604.4,8.0]
[1748969942603,1.3457,2605.1,2604.2,1.721]
[1748969944407,1.3457,2605.1,2604.1,2.10081223]
[1748969944605,1.3457,2605.1,2604.1,0.37981223]
[1748969944606,1.2837,2604.9,2604.1,0.37981223]
[1748969945010,1.3069,2605.0,2604.1,0.37981223]
[1748969945892,1.7918,2604.9,2604.1,0.37981223]
[1748969946100,1.2418,2604.9,2604.1,0.37981223]
[1748969946805,1.2418,2604.9,2603.9,3.84036048]
[1748969946975,1.2418,2604.9,2604.0,3.84024078]
[1748969947172,1.2418,2604.9,2603.9,3.84034338]
[1748969947373,1.2418,2604.9,2603.9,2.10319943]
[1748969947905,1.2418,2604.9,2603.9,5.94355608]
[1748969948812,1.2418,2604.9,2603.9,2.10319943]
[1748969949187,1.8787,2604.8,2603.7,0.38554928]
[1748969949378,1.8787,2604.8,2603.6,9.721]
[1748969949379,1.3287,2604.7,2603.6,13.56174898]
[1748969949933,1.3287,2604.7,2603.9,3.84032364]
[1748969950079,1.3287,2604.7,2604.0,2.39442901]
[1748969950280,1.3287,2604.7,2604.0,6.2346735]
[1748969950475,1.3287,2604.7,2604.1,17.57742902]
[1748969950721,1.3287,2604.7,2604.1,21.41746679]
[1748969951052,1.3287,2604.7,2604.1,21.41752035]
[1748969951231,1.3287,2604.7,2604.2,2.38119494]
[1748969951522,1.3287,2604.7,2604.2,10.76137842]
[1748969952417,1.721,2605.6,2604.4,8.26342902]
[1748969952712,1.2538,2605.5,2604.5,3.83938567]
[1748969952913,2.19578,2605.5,2604.6,9.59424506]
[1748969953333,1.2538,2605.4,2604.6,9.59424506]
[1748969955104,1.2538,2605.4,2604.3,1.721]
[1748969955308,1.2538,2605.4,2604.4,13.83951397]
[1748969955617,1.2538,2605.4,2604.6,8.0]
[1748969956117,1.2538,2605.4,2604.4,8.0]
[1748969956328,1.2761,2605.2,2604.3,8.0]
[1748969956695,1.2761,2605.2,2604.2,1.721]
[1748969956885,1.2761,2605.2,2604.2,9.721]
[1748969957088,1.2761,2605.2,2604.2,1.721]
[1748969957922,1.2761,2605.2,2604.1,8.0]
[1748969958129,0.55,2605.3,2603.9,5.13909113]
[1748969958130,1.3109,2605.0,2603.9,1.721]
[1748969958328,1.3109,2605.0,2604.1,0.37669117]
[1748969958490,1.3109,2605.0,2604.1,8.0]
[1748969960060,1.3109,2605.0,2604.1,11.84008347]
[1748969960242,1.3109,2605.0,2604.2,3.8399025]
[1748969960564,1.3109,2605.0,2604.5,1.2956]
[1748969960706,1.3109,2605.0,2604.6,8.0]
[1748969960925,1.721,2605.4,2604.6,16.26342902]
[1748969960926,1.3109,2605.3,2604.6,16.26342902]
[1748969961111,1.3109,2605.3,2604.6,18.01933192]
[1748969961614,1.3109,2605.3,2604.7,8.0]
[1748969962434,1.3109,2605.3,2604.9,8.0]
[1748969962636,7.7422,2605.8,2604.9,3.83887849]
[1748969962955,1.2992,2605.8,2605.0,0.38388785]
[1748969963456,1.2992,2605.8,2605.1,10.0]
[1748969965114,1.2992,2605.8,2605.0,0.38388785]
[1748969965342,1.2992,2605.8,2604.7,8.0]
[1748969965542,1.2992,2605.8,2604.7,11.83919091]
[1748969966021,1.2992,2605.8,2604.7,8.0]
[1748969966221,1.2992,2605.8,2604.7,11.83919973]
[1748969968459,1.2992,2605.8,2604.7,8.0]
[1748969968628,1.2992,2605.8,2604.7,10.76934313]
[1748969968955,1.2992,2605.8,2604.6,11.4769029]
[1748969969156,1.2992,2605.8,2604.6,15.31624436]
[1748969969863,1.2992,2605.8,2604.8,8.0]
[1748969970227,1.2992,2605.8,2604.8,3.83904091]
[1748969970423,1.2992,2605.8,2604.8,8.0]
[1748969970830,1.2992,2605.8,2604.8,1.53160505]
[1748969971034,7.7232,2605.8,2604.8,23.37058719]
[1748969971345,1.2758,2605.7,2604.8,9.53160505]
[1748969972468,1.2758,2605.7,2604.7,10.0]
[1748969973092,16.687,2605.6,2604.2,0.51]
[1748969973222,16.687,2605.6,2604.0,1.21813774]
[1748969973223,1.257,2605.3,2604.1,10.3778036]
[1748969973428,0.55,2605.3,2604.0,3.84024475]
[1748969973684,1.3501,2605.1,2604.1,1.50754738]
[1748969973884,1.3501,2605.1,2604.1,11.50754738]
[1748969974969,1.3501,2605.1,2604.1,10.0]
[1748969975261,1.3501,2605.1,2604.1,13.84006994]
[1748969976155,1.3501,2605.1,2604.2,8.0]
[1748969976353,1.3501,2605.1,2604.4,3.83964225]
[1748969976665,1.3501,2605.1,2604.3,5.02377795]
[1748969976875,1.3501,2605.1,2604.5,20.10286646]
[1748969977031,1.3501,2605.1,2604.6,3.8393526]
[1748969977234,1.3501,2605.1,2604.7,1.10208661]
[1748969977876,1.3501,2605.1,2604.7,4.94121728]
[1748969978379,1.3501,2605.1,2604.7,1.10208661]
[1748969978978,1.3501,2605.1,2604.7,4.94126974]
[1748969979176,1.3501,2605.1,2604.8,0.49412697]
[1748969979747,1.3501,2605.1,2604.7,1.10208661]
[1748969979945,1.3501,2605.1,2604.5,9.718]
[1748969980351,1.3501,2605.1,2604.5,13.55748986]
[1748969980880,1.3501,2605.1,2604.6,3.83933864]
[1748969981067,1.3501,2605.1,2604.7,3.83920669]
[1748969981253,1.3501,2605.1,2604.8,3.83905797]
[1748969981454,1.3554,2605.6,2604.7,5.15637764]
[1748969981657,1.3554,2605.6,2604.6,8.9718]
[1748969981976,1.3554,2605.5,2604.7,5.15348251]
[1748969982475,1.3554,2605.5,2604.7,1.3142936]
[1748969983045,1.3554,2605.5,2604.8,3.83904147]
[1748969983977,1.3554,2605.5,2604.8,8.0]
[1748969986187,1.3554,2605.5,2604.8,3.8389684]
[1748969986366,1.2563,2605.3,2604.0,1.70552656]
[1748969986566,1.2563,2605.3,2604.6,3.83933532]
[1748969986880,1.2563,2605.3,2604.6,3.8392228]
[1748969987040,1.2563,2605.3,2604.6,3.83927854]
[1748969987246,1.2563,2605.3,2604.7,5.40708417]
[1748969987782,1.2563,2605.3,2604.7,1.567876]
[1748969988345,1.2563,2605.3,2604.7,5.40708504]
[1748969989176,1.2563,2605.3,2604.7,1.567876]
[1748969990084,1.2563,2605.3,2604.7,5.40708419]
[1748969990255,1.2563,2605.3,2604.8,0.54070842]
[1748969990864,1.2563,2605.3,2604.8,3.83904028]
[1748969991178,1.2563,2605.3,2604.8,3.83903841]
[1748969991956,1.2563,2605.3,2604.8,3.83900053]
[1748969992592,1.2563,2605.3,2604.9,3.83890336]
[1748969992883,1.2563,2605.3,2604.8,3.83897996]
[1748969993073,1.2563,2605.3,2604.8,5.43313616]
[1748969993458,1.2563,2605.3,2604.9,3.83889508]
[1748969994787,1.2563,2605.3,2605.0,3.83873577]
[1748969994959,1.2563,2605.3,2604.8,1.5941562]
[1748969995144,1.2563,2605.3,2604.9,3.83883557]
[1748969996185,1.2563,2605.3,2604.8,2.48911186]
[1748969996372,1.2563,2605.3,2604.8,6.32804557]
[1748969997989,1.2563,2605.3,2604.6,13.97477968]
[1748969998285,1.2563,2605.3,2604.9,3.83890904]
[1748969998449,1.2563,2605.3,2604.8,7.81374508]
[1748969998645,1.2563,2605.3,2604.7,3.83921372]
[1748969998898,1.2563,2605.3,2604.6,7.8140795]
[1748969998899,1.2563,2605.3,2604.6,7.81407757]
[1748969999352,1.2563,2605.3,2604.7,3.83921372]
[1748970000502,1.2563,2605.3,2604.8,3.83905409]
[1748970000877,1.2563,2605.3,2604.5,1.718]
[1748970001064,1.364,2605.1,2604.0,1.6025643]
[1748970001269,1.364,2604.9,2603.9,7.05447968]
[1748970001580,1.364,2604.9,2603.9,11.698]
[1748970001781,1.364,2604.7,2603.9,2.08814436]
[1748970002030,1.364,2604.7,2603.6,12.12774623]
[1748970002031,1.364,2604.7,2603.6,3.97477968]
[1748970002307,1.3973,2604.3,2603.4,4.16711116]
[1748970002602,1.3973,2604.3,2603.5,3.84098314]
[1748970002814,1.3973,2604.3,2603.3,5.53926244]
[1748970002965,1.304,2604.1,2603.3,8.0]
[1748970003166,1.304,2604.1,2603.2,10.34191098]
[1748970003363,1.304,2604.1,2603.2,14.18329967]
[1748970003569,1.304,2604.1,2603.2,0.15472454]
[1748970003762,1.304,2604.1,2603.2,4.3759547]
[1748970003995,1.304,2604.1,2603.2,0.53453208]
[1748970004204,6.92487797,2604.6,2603.2,0.15472454]
[1748970004205,1.3166,2603.9,2603.2,0.15472454]
[1748970004580,0.77076,2603.8,2603.2,0.15472454]
[1748970004802,0.55,2603.8,2603.2,0.15472454]
[1748970005000,0.55,2603.6,2603.2,0.15472454]
[1748970005203,1.3166,2603.5,2603.2,0.15472454]
[1748970005374,2.08856,2603.5,2603.2,0.15472454]
[1748970005577,1.3166,2603.5,2603.2,0.15472454]
[1748970006372,1.3396,2603.3,2603.2,0.15472454]
[1748970008497,1.3548,2603.8,2603.2,3.99615047]
[1748970008806,1.3548,2603.8,2603.2,3.99608923]
[1748970009174,1.3548,2603.8,2603.2,0.15472454]
[1748970009370,1.3548,2603.8,2603.3,3.8411858]
[1748970009780,1.3548,2603.8,2603.4,3.84101248]
[1748970010575,1.3548,2603.8,2603.5,3.84097603]
[1748970010873,6.411,2604.2,2603.7,8.0]
[1748970010874,1.3009,2604.2,2603.7,8.0]
[1748970011121,1.3009,2604.2,2603.9,3.84028971]
[1748970011276,1.3009,2604.2,2603.7,3.84059989]
[1748970011475,1.3009,2604.2,2603.9,3.84036524]
[1748970011678,1.3009,2604.2,2603.7,3.84059547]
[1748970011992,1.3009,2604.2,2603.6,3.84076665]
[1748970012400,1.3009,2604.2,2603.3,3.84117476]
[1748970012608,1.3009,2604.2,2603.4,3.84109891]
[1748970012843,1.3009,2604.2,2603.5,3.84089932]
[1748970012984,1.3009,2604.2,2603.7,3.84062055]
[1748970013184,1.3009,2604.2,2603.9,3.84032453]
[1748970013489,1.3009,2604.2,2603.6,8.27812162]
[1748970013694,1.3009,2604.2,2603.7,11.84055004]
[1748970013897,1.3009,2604.2,2604.1,3.8400983]
[1748970014096,1.3009,2604.2,2604.0,3.84020175]
[1748970014292,1.3009,2604.2,2604.1,4.1998439]
[1748970014493,6.42,2604.9,2604.5,3.83944133]
[1748970014718,3.0646,2605.0,2604.1,0.57557936]
[1748970014719,3.0646,2605.0,2604.6,0.57552337]
[1748970014927,3.0646,2605.0,2604.7,0.35969496]
[1748970015129,1.3656,2605.0,2604.6,3.83936113]
[1748970015338,1.3656,2605.0,2604.4,3.83965596]
[1748970015500,1.3656,2605.0,2604.5,8.0]
[1748970015823,1.3886,2605.4,2604.7,3.83917189]
[1748970016028,2.33986,2605.4,2604.9,3.83891665]
[1748970016212,1.3886,2605.4,2605.0,0.35962593]
[1748970016399,1.3767,2605.8,2605.0,8.27812162]
[1748970016605,1.3767,2605.8,2605.1,3.8386133]
[1748970016830,1.3767,2605.8,2605.2,3.83846282]
[1748970017134,1.3767,2605.8,2605.0,16.27812162]
[1748970017503,1.3767,2605.8,2605.1,3.83849351]
[1748970017816,1.3767,2605.8,2605.2,4.05421162]
[1748970018131,1.3767,2605.8,2605.2,3.83847255]
[1748970019328,1.3767,2605.8,2605.1,3.83854776]
[1748970019832,1.3767,2605.8,2605.1,3.83861424]
[1748970020205,1.3767,2605.8,2605.2,3.83847337]
[1748970020524,1.3767,2605.8,2605.3,3.83820995]
[1748970020724,1.3767,2605.8,2605.7,3.83774033]
[1748970020928,0.02,2605.9,2605.6,12.11593121]
[1748970021710,0.02,2605.9,2605.6,12.11600347]
[1748970021890,0.02,2605.9,2605.7,3.83769189]
[1748970022106,0.02,2605.9,2605.7,3.83765212]
[1748970022306,0.02,2605.9,2605.8,3.83759306]
[1748970022513,0.02,2605.9,2605.6,8.65923145]
[1748970022713,0.02,2605.9,2605.6,0.38110983]
[1748970022919,1.2792,2605.8,2605.3,3.83826266]
[1748970023646,1.2792,2605.8,2605.2,11.83839825]
[1748970023811,1.2792,2605.8,2605.2,8.0]
[1748970024213,1.2792,2605.8,2605.0,10.0]
[1748970024644,1.2792,2605.8,2605.1,8.0]
[1748970025139,1.2792,2605.8,2605.1,8.27812162]
[1748970025825,1.2792,2605.8,2605.1,12.11667147]
[1748970026337,1.2792,2605.8,2605.3,8.0]
[1748970026546,1.2792,2605.8,2605.2,8.0]
[1748970027042,1.2792,2605.8,2605.5,8.0]
[1748970027214,0.02,2605.9,2605.5,8.0]
[1748970028746,0.02,2605.9,2605.2,8.0]
[1748970028926,0.02,2605.9,2605.5,8.0]
[1748970030349,0.02,2605.9,2605.7,8.0]
[1748970032459,0.02,2605.9,2605.8,11.83759306]
[1748970032672,0.02,2605.9,2605.8,8.0]
[1748970033259,0.02,2605.9,2605.8,11.83759306]
[1748970033563,0.02,2605.9,2605.8,8.0]
[1748970033762,0.02,2605.9,2605.8,11.83759306]
[1748970034990,0.02,2605.9,2605.8,13.80462507]
[1748970035423,0.01179168,2605.9,2605.8,7.58793307]
[1748970036471,0.01179168,2605.9,2605.7,8.27812162]
[1748970036660,0.01179168,2605.9,2605.7,12.11578741]
[1748970036865,0.01179168,2605.9,2605.8,11.83759306]
[1748970037931,0.01179168,2605.9,2605.8,8.0]
[1748970039073,1.0413759,2606.1,2605.8,8.0]
[1748970039294,0.02,2606.9,2605.9,3.83738515]
[1748970039457,6.427,2606.9,2606.1,8.0]
[1748970041970,1.3643,2606.8,2606.1,11.83702559]
[1748970042970,1.3643,2606.8,2606.3,8.0]
[1748970043296,1.3643,2606.8,2606.6,8.0]
[1748970043439,0.02,2606.9,2606.6,16.27812162]
[1748970043653,0.02,2606.9,2606.6,16.65286326]
[1748970043873,1.4019,2606.8,2606.1,8.0]
[1748970044192,1.4019,2606.8,2605.8,8.0]
[1748970045751,1.4019,2606.8,2605.8,8.38142887]
[1748970049974,7.7979,2606.8,2606.0,12.11534324]
[1748970050345,7.7979,2606.8,2606.3,8.27812162]
[1748970050346,1.4019,2606.8,2606.3,8.27812162]
[1748970050545,1.4019,2606.8,2606.4,8.0]
[1748970050755,1.4019,2606.8,2606.4,11.83670279]
[1748970051468,1.4019,2606.8,2606.4,8.0]
[1748970051858,1.4019,2606.8,2606.4,8.37510303]
[1748970052389,1.3797,2607.5,2606.7,8.27812162]
[1748970052572,1.3797,2607.5,2606.8,3.83602425]
[1748970052901,1.3797,2607.5,2606.7,8.27812162]
[1748970053564,1.3797,2607.5,2606.7,12.11430735]